[Event "*** Titled Tuesday 3|2 Blitz"]
[Site "Chess.com"]
[Date "2015.06.02"]
[Round "7"]
[White "MartinZumsande"]
[Black "kesarev"]
[Result "1/2-1/2"]
[WhiteElo "2293"]
[BlackElo "2153"]
[TimeControl "180+2"]
[EndTime "12:29:38 PDT"]
[Termination "Game drawn by repetition"]

1. e4 {[%clk 0:03:01.9]} 1... g6 {[%clk 0:03:00.6]} 2. d4 {[%clk 0:03:01.2]}
2... Bg7 {[%clk 0:03:01.7]} 3. Nc3 {[%clk 0:03:02]} 3... c5 {[%clk 0:03:02.7]}
4. dxc5 {[%clk 0:03:01.9]} 4... Bxc3+ {[%clk 0:03:03.7]} 5. bxc3 {[%clk
0:03:02.2]} 5... Qa5 {[%clk 0:03:05.3]} 6. Qd4 {[%clk 0:03:03.1]} 6... Nf6
{[%clk 0:03:05.8]} 7. Qb4 {[%clk 0:02:59.1]} 7... Nc6 {[%clk 0:03:06.4]} 8. Qxa5
{[%clk 0:02:58.4]} 8... Nxa5 {[%clk 0:03:08.3]} 9. Bd3 {[%clk 0:02:59.5]} 9...
b6 {[%clk 0:03:07.1]} 10. cxb6 {[%clk 0:02:56.9]} 10... axb6 {[%clk 0:03:07.8]}
11. Ne2 {[%clk 0:02:57.6]} 11... Ba6 {[%clk 0:03:03.1]} 12. Rb1 {[%clk
0:02:52.5]} 12... Nc4 {[%clk 0:03:00.6]} 13. Bg5 {[%clk 0:02:45.1]} 13... Ng4
{[%clk 0:02:55.5]} 14. Rb4 {[%clk 0:02:30.4]} 14... Nce5 {[%clk 0:02:28]} 15. c4
{[%clk 0:02:12.8]} 15... Nc6 {[%clk 0:01:48.6]} 16. Rxb6 {[%clk 0:02:04.6]}
16... Nge5 {[%clk 0:01:49.8]} 17. f4 {[%clk 0:01:35.5]} 17... Ng4 {[%clk
0:01:10.9]} 18. Kd2 {[%clk 0:01:23.1]} 18... f6 {[%clk 0:00:57.9]} 19. Bh4
{[%clk 0:01:23.4]} 19... Kf7 {[%clk 0:00:55.1]} 20. h3 {[%clk 0:01:23.1]} 20...
Nh6 {[%clk 0:00:55.5]} 21. Rhb1 {[%clk 0:01:21.7]} 21... Rhc8 {[%clk 0:00:55.3]}
22. Bf2 {[%clk 0:01:13.4]} 22... Ke8 {[%clk 0:00:53.8]} 23. R1b2 {[%clk
0:01:02.8]} 23... Na5 {[%clk 0:00:48.1]} 24. c5 {[%clk 0:00:59.9]} 24... Nc4+
{[%clk 0:00:46.6]} 25. Bxc4 {[%clk 0:00:59.3]} 25... Bxc4 {[%clk 0:00:48]} 26.
Nc3 {[%clk 0:00:56.2]} 26... Nf7 {[%clk 0:00:47.8]} 27. g3 {[%clk 0:00:54.1]}
27... Nd8 {[%clk 0:00:48.4]} 28. R6b4 {[%clk 0:00:44.8]} 28... Be6 {[%clk
0:00:41.4]} 29. Nd5 {[%clk 0:00:45.8]} 29... Nc6 {[%clk 0:00:22.2]} 30. Rb7
{[%clk 0:00:44.9]} 30... Ra3 {[%clk 0:00:17.9]} 31. Nc7+ {[%clk 0:00:41.6]}
31... Kf7 {[%clk 0:00:19]} 32. Nxe6 {[%clk 0:00:42.8]} 32... Kxe6 {[%clk
0:00:20.9]} 33. R7b3 {[%clk 0:00:39.5]} 33... Ra4 {[%clk 0:00:21.3]} 34. Ke3
{[%clk 0:00:36.5]} 34... Rca8 {[%clk 0:00:21.9]} 35. g4 {[%clk 0:00:32.5]} 35...
Rxa2 {[%clk 0:00:21.2]} 36. f5+ {[%clk 0:00:33.9]} 36... Kf7 {[%clk 0:00:21.8]}
37. Bg3 {[%clk 0:00:29.1]} 37... Rxb2 {[%clk 0:00:18.3]} 38. Rxb2 {[%clk
0:00:31]} 38... Ra5 {[%clk 0:00:19.3]} 39. Rb7 {[%clk 0:00:30]} 39... Rxc5
{[%clk 0:00:18.6]} 40. Rxd7 {[%clk 0:00:31.1]} 40... Rc3+ {[%clk 0:00:19.4]} 41.
Rd3 {[%clk 0:00:29.1]} 41... Rxc2 {[%clk 0:00:20]} 42. Kf3 {[%clk 0:00:29.5]}
42... h5 {[%clk 0:00:18]} 43. gxh5 {[%clk 0:00:27.5]} 43... gxh5 {[%clk
0:00:18.2]} 44. Bf4 {[%clk 0:00:28.5]} 44... Nb4 {[%clk 0:00:13.6]} 45. Rb3
{[%clk 0:00:27.2]} 45... Nc6 {[%clk 0:00:13.3]} 46. Kg3 {[%clk 0:00:28.1]} 46...
Nd4 {[%clk 0:00:14]} 47. Re3 {[%clk 0:00:28.3]} 47... Ne2+ {[%clk 0:00:14.9]}
48. Kf3 {[%clk 0:00:28.3]} 48... Ng1+ {[%clk 0:00:14.4]} 49. Kg3 {[%clk
0:00:28.9]} 49... Ne2+ {[%clk 0:00:15.3]} 50. Kf3 {[%clk 0:00:30.3]} 50... Ng1+
{[%clk 0:00:16]} 51. Kg3 {[%clk 0:00:31.1]} 51... Ne2+ {[%clk 0:00:10.5]} 52.
Kf3 {[%clk 0:00:29.4]} 52... Ng1+ {[%clk 0:00:11.3]} 53. Kg3 {[%clk 0:00:30.4]}
1/2-1/2

[Event "*** Titled Tuesday 3|2 Blitz"]
[Site "Chess.com"]
[Date "2015.06.02"]
[Round "7"]
[White "GGuseinov"]
[Black "RitvarsReimanis"]
[Result "0-1"]
[WhiteElo "2446"]
[BlackElo "2367"]
[TimeControl "180+2"]
[EndTime "12:30:48 PDT"]
[Termination "RitvarsReimanis won by resignation"]

1. e4 {[%clk 0:02:58.3]} 1... e6 {[%clk 0:03:00.4]} 2. d4 {[%clk 0:02:58.4]}
2... d5 {[%clk 0:03:02.3]} 3. Nd2 {[%clk 0:02:59]} 3... c6 {[%clk 0:03:03.5]} 4.
Ngf3 {[%clk 0:02:57.7]} 4... f5 {[%clk 0:03:04.7]} 5. exf5 {[%clk 0:02:58]} 5...
exf5 {[%clk 0:03:06.6]} 6. Be2 {[%clk 0:02:58.5]} 6... Nf6 {[%clk 0:03:08.5]} 7.
O-O {[%clk 0:02:58.4]} 7... Bd6 {[%clk 0:03:10.4]} 8. Re1 {[%clk 0:02:58.7]}
8... O-O {[%clk 0:03:10.7]} 9. Nf1 {[%clk 0:02:58.9]} 9... Ne4 {[%clk
0:03:08.4]} 10. c3 {[%clk 0:02:58.1]} 10... Nd7 {[%clk 0:03:09.1]} 11. Ng3
{[%clk 0:02:56.5]} 11... Ndf6 {[%clk 0:03:04.8]} 12. Ne5 {[%clk 0:02:55.8]}
12... Bxe5 {[%clk 0:03:05.6]} 13. dxe5 {[%clk 0:02:56]} 13... Ng4 {[%clk
0:02:54.4]} 14. Nxe4 {[%clk 0:02:52]} 14... dxe4 {[%clk 0:02:50.2]} 15. Qxd8
{[%clk 0:02:50.3]} 15... Rxd8 {[%clk 0:02:50]} 16. Bg5 {[%clk 0:02:50.2]} 16...
Re8 {[%clk 0:02:42.5]} 17. Bxg4 {[%clk 0:02:50.7]} 17... fxg4 {[%clk 0:02:44.4]}
18. Rxe4 {[%clk 0:02:49.7]} 18... Bf5 {[%clk 0:02:41.1]} 19. Re3 {[%clk
0:02:43.7]} 19... h6 {[%clk 0:02:41.9]} 20. Bh4 {[%clk 0:02:44.4]} 20... g5
{[%clk 0:02:42.4]} 21. Bg3 {[%clk 0:02:45.5]} 21... Rad8 {[%clk 0:02:37.7]} 22.
Rae1 {[%clk 0:02:46]} 22... Kf7 {[%clk 0:02:29.3]} 23. f3 {[%clk 0:02:43.4]}
23... h5 {[%clk 0:02:25]} 24. fxg4 {[%clk 0:02:43.1]} 24... hxg4 {[%clk
0:02:26.9]} 25. R3e2 {[%clk 0:02:41]} 25... Ke6 {[%clk 0:02:17.8]} 26. Bf2
{[%clk 0:02:37.6]} 26... b6 {[%clk 0:02:11.8]} 27. Be3 {[%clk 0:02:38.1]} 27...
Rg8 {[%clk 0:02:10.1]} 28. Rf2 {[%clk 0:02:38.3]} 28... c5 {[%clk 0:02:04.2]}
29. Bc1 {[%clk 0:02:21.4]} 29... Rg6 {[%clk 0:01:52.9]} 30. Ref1 {[%clk
0:01:58.2]} 30... Be4 {[%clk 0:01:50]} 31. Rf6+ {[%clk 0:01:50]} 31... Kxe5
{[%clk 0:01:48.6]} 32. Rxg6 {[%clk 0:01:46.9]} 32... Bxg6 {[%clk 0:01:50.5]} 33.
Bxg5 {[%clk 0:01:47.7]} 33... Rd7 {[%clk 0:01:46.3]} 34. Re1+ {[%clk 0:01:38.4]}
34... Be4 {[%clk 0:01:42.5]} 35. Kf2 {[%clk 0:01:30.7]} 35... Kf5 {[%clk
0:01:40.3]} 36. Bc1 {[%clk 0:01:26.3]} 36... Rh7 {[%clk 0:01:36.4]} 37. Kg3
{[%clk 0:01:24.2]} 37... Rg7 {[%clk 0:01:27.5]} 38. Rf1+ {[%clk 0:01:20.6]}
38... Ke6 {[%clk 0:01:27]} 39. Rf8 {[%clk 0:01:21.3]} 39... Bb1 {[%clk
0:01:20.9]} 40. a3 {[%clk 0:01:20.3]} 40... Bc2 {[%clk 0:01:17.4]} 41. Bf4
{[%clk 0:01:17.3]} 41... Bd1 {[%clk 0:01:11.7]} 42. Bb8 {[%clk 0:01:09.1]} 42...
Rd7 {[%clk 0:01:05.9]} 43. Bf4 {[%clk 0:01:00.8]} 43... Rd3+ {[%clk 0:01:03.9]}
44. Kh4 {[%clk 0:01:00.7]} 44... Rd7 {[%clk 0:01:02.9]} 45. Re8+ {[%clk
0:00:55.1]} 45... Kf5 {[%clk 0:00:49.3]} 46. Rf8+ {[%clk 0:00:53.1]} 46... Ke6
{[%clk 0:00:47.5]} 47. Rh8 {[%clk 0:00:53.9]} 47... Kf5 {[%clk 0:00:44.2]} 48.
Bh6 {[%clk 0:00:46.3]} 48... Kg6 {[%clk 0:00:39.7]} 49. Bf4 {[%clk 0:00:35.4]}
49... Kf5 {[%clk 0:00:39.9]} 50. g3 {[%clk 0:00:36.7]} 50... Bf3 {[%clk
0:00:35.3]} 51. Rh5+ {[%clk 0:00:37.1]} 51... Kg6 {[%clk 0:00:26.5]} 52. Bb8
{[%clk 0:00:37.2]} 52... Rd2 {[%clk 0:00:23]} 53. Rg5+ {[%clk 0:00:38.4]} 53...
Kf6 {[%clk 0:00:22.3]} 54. h3 {[%clk 0:00:20.9]} 54... Rh2 {[%clk 0:00:14.9]}
55. Rxg4 {[%clk 0:00:21.7]} 55... Bxg4 {[%clk 0:00:15.9]} 56. Kxg4 {[%clk
0:00:23.1]} 56... Rxb2 {[%clk 0:00:17.6]} 57. Bxa7 {[%clk 0:00:24.4]} 57... c4
{[%clk 0:00:17]} 58. a4 {[%clk 0:00:22.2]} 58... Rb3 {[%clk 0:00:17.5]} 59. h4
{[%clk 0:00:21.8]} 59... Rxc3 {[%clk 0:00:17.8]} 60. Bxb6 {[%clk 0:00:21.4]}
60... Rb3 {[%clk 0:00:19.1]} 61. Bd4+ {[%clk 0:00:22.2]} 61... Ke6 {[%clk
0:00:19.9]} 62. h5 {[%clk 0:00:23.3]} 62... c3 {[%clk 0:00:21.3]} 63. h6 {[%clk
0:00:24.5]} 63... Rb4 {[%clk 0:00:21.9]} 64. h7 {[%clk 0:00:23.6]} 64... Rxd4+
{[%clk 0:00:23.1]} 0-1

[Event "*** Titled Tuesday 3|2 Blitz"]
[Site "Chess.com"]
[Date "2015.06.02"]
[Round "7"]
[White "GMHess"]
[Black "Danirod"]
[Result "1-0"]
[WhiteElo "2489"]
[BlackElo "2397"]
[TimeControl "180+2"]
[EndTime "12:30:52 PDT"]
[Termination "GMHess won by checkmate"]

1. g3 {[%clk 0:03:01.9]} 1... d5 {[%clk 0:03:00.7]} 2. Bg2 {[%clk 0:03:03.4]}
2... e5 {[%clk 0:03:01.7]} 3. d3 {[%clk 0:03:02.5]} 3... Nc6 {[%clk 0:03:02.2]}
4. c4 {[%clk 0:03:03.2]} 4... Nf6 {[%clk 0:03:00.7]} 5. cxd5 {[%clk 0:03:03]}
5... Nxd5 {[%clk 0:03:01.6]} 6. Nc3 {[%clk 0:03:03.8]} 6... Nb6 {[%clk
0:03:01.4]} 7. Nf3 {[%clk 0:03:03.8]} 7... Be7 {[%clk 0:03:02.4]} 8. O-O {[%clk
0:03:00.8]} 8... O-O {[%clk 0:03:03.2]} 9. a4 {[%clk 0:03:02.4]} 9... a5 {[%clk
0:02:58.4]} 10. Be3 {[%clk 0:03:03.3]} 10... Be6 {[%clk 0:02:56.5]} 11. Bxb6
{[%clk 0:03:02.7]} 11... cxb6 {[%clk 0:02:57.8]} 12. Nd2 {[%clk 0:03:04.3]}
12... Bb4 {[%clk 0:02:57.4]} 13. Nc4 {[%clk 0:02:52.8]} 13... Bxc4 {[%clk
0:02:53.2]} 14. dxc4 {[%clk 0:02:51.2]} 14... Bxc3 {[%clk 0:02:32.4]} 15. bxc3
{[%clk 0:02:53.1]} 15... Qc7 {[%clk 0:02:29.3]} 16. Qb3 {[%clk 0:02:48.3]} 16...
Nd8 {[%clk 0:02:21.7]} 17. Rab1 {[%clk 0:02:41.1]} 17... Ne6 {[%clk 0:02:01.8]}
18. Qxb6 {[%clk 0:02:34.8]} 18... Qxb6 {[%clk 0:02:02.3]} 19. Rxb6 {[%clk
0:02:35.8]} 19... Nc5 {[%clk 0:01:55.4]} 20. Ra1 {[%clk 0:02:36.3]} 20... Rac8
{[%clk 0:01:42.2]} 21. Bd5 {[%clk 0:02:32.2]} 21... Rc7 {[%clk 0:01:41.7]} 22.
Kf1 {[%clk 0:02:21.7]} 22... Ra8 {[%clk 0:01:39.4]} 23. Ke1 {[%clk 0:02:20.3]}
23... Kf8 {[%clk 0:01:40.7]} 24. Kd2 {[%clk 0:02:20.3]} 24... Ra6 {[%clk
0:01:37.1]} 25. Rb5 {[%clk 0:02:19.3]} 25... Ke7 {[%clk 0:01:35.4]} 26. Kc2
{[%clk 0:02:16]} 26... g5 {[%clk 0:01:36.2]} 27. Rh1 {[%clk 0:02:01.2]} 27...
Nxa4 {[%clk 0:01:01.8]} 28. h4 {[%clk 0:01:53.4]} 28... g4 {[%clk 0:00:33.5]}
29. Bxb7 {[%clk 0:01:29.1]} 29... Rb6 {[%clk 0:00:29.7]} 30. Rxb6 {[%clk
0:00:46.8]} 30... Nxb6 {[%clk 0:00:30.5]} 31. Bd5 {[%clk 0:00:36.7]} 31... Nxc4
{[%clk 0:00:29.8]} 32. Ra1 {[%clk 0:00:35.2]} 32... Nd6 {[%clk 0:00:12.1]} 33.
Rxa5 {[%clk 0:00:30.5]} 33... f6 {[%clk 0:00:13.6]} 34. Kb3 {[%clk 0:00:19.4]}
34... h6 {[%clk 0:00:14.9]} 35. e4 {[%clk 0:00:20.1]} 35... f5 {[%clk
0:00:14.1]} 36. exf5 {[%clk 0:00:19.4]} 36... Nxf5 {[%clk 0:00:15.4]} 37. Bg2
{[%clk 0:00:13.2]} 37... Kd6 {[%clk 0:00:13.8]} 38. Ra6+ {[%clk 0:00:12.6]}
38... Ke7 {[%clk 0:00:12.5]} 39. Ra5 {[%clk 0:00:13.7]} 39... Ke6 {[%clk
0:00:12]} 40. Bd5+ {[%clk 0:00:14.7]} 40... Kf6 {[%clk 0:00:12.9]} 41. Ra6+
{[%clk 0:00:15.2]} 41... Kg7 {[%clk 0:00:12.7]} 42. Be4 {[%clk 0:00:16.3]} 42...
Ne7 {[%clk 0:00:13.3]} 43. c4 {[%clk 0:00:17.5]} 43... Ng8 {[%clk 0:00:12.4]}
44. Rg6+ {[%clk 0:00:16.8]} 44... Kf7 {[%clk 0:00:13]} 45. h5 {[%clk 0:00:14.8]}
45... Nf6 {[%clk 0:00:13.1]} 46. Bd5+ {[%clk 0:00:14.7]} 46... Nxd5 {[%clk
0:00:13.3]} 47. cxd5 {[%clk 0:00:16.6]} 47... Rc5 {[%clk 0:00:13.6]} 48. d6
{[%clk 0:00:17]} 48... Rd5 {[%clk 0:00:14.5]} 49. Rxh6 {[%clk 0:00:17.8]} 49...
Rd2 {[%clk 0:00:15.3]} 50. Kc4 {[%clk 0:00:13.8]} 50... Rxf2 {[%clk 0:00:11.5]}
51. Kd5 {[%clk 0:00:14.1]} 51... Re2 {[%clk 0:00:09.4]} 52. Rh7+ {[%clk
0:00:14.1]} 52... Kg8 {[%clk 0:00:11]} 53. Re7 {[%clk 0:00:14.7]} 53... Rd2+
{[%clk 0:00:11]} 54. Ke6 {[%clk 0:00:14.8]} 54... Kf8 {[%clk 0:00:11.2]} 55. h6
{[%clk 0:00:10.7]} 55... e4 {[%clk 0:00:10.7]} 56. h7 {[%clk 0:00:11.8]} 56...
Rxd6+ {[%clk 0:00:10.3]} 57. Kxd6 {[%clk 0:00:12.2]} 57... e3 {[%clk 0:00:11.8]}
58. h8=Q# {[%clk 0:00:13.3]} 1-0

[Event "*** Titled Tuesday 3|2 Blitz"]
[Site "Chess.com"]
[Date "2015.06.02"]
[Round "7"]
[White "Aygehovit1992"]
[Black "GeorgMeier"]
[Result "0-1"]
[WhiteElo "2431"]
[BlackElo "2718"]
[TimeControl "180+2"]
[EndTime "12:30:58 PDT"]
[Termination "GeorgMeier won by resignation"]

1. e4 {[%clk 0:03:01.9]} 1... e6 {[%clk 0:03:01.4]} 2. d4 {[%clk 0:03:03.1]}
2... d5 {[%clk 0:03:01.3]} 3. Nc3 {[%clk 0:03:04.4]} 3... dxe4 {[%clk
0:03:02.4]} 4. Nxe4 {[%clk 0:03:05.1]} 4... Nd7 {[%clk 0:03:03.7]} 5. Nf3 {[%clk
0:03:06.4]} 5... Ngf6 {[%clk 0:03:05.6]} 6. Bg5 {[%clk 0:03:06.5]} 6... h6
{[%clk 0:03:06.4]} 7. Nxf6+ {[%clk 0:03:02.5]} 7... Nxf6 {[%clk 0:03:08.3]} 8.
Be3 {[%clk 0:03:03.7]} 8... Bd6 {[%clk 0:03:06.7]} 9. Bd3 {[%clk 0:03:04.6]}
9... O-O {[%clk 0:03:07.6]} 10. Qd2 {[%clk 0:03:05.3]} 10... Nd5 {[%clk
0:02:59.3]} 11. O-O-O {[%clk 0:03:04]} 11... b6 {[%clk 0:02:55.4]} 12. Ne5
{[%clk 0:03:01.2]} 12... Nxe3 {[%clk 0:02:40.2]} 13. Qxe3 {[%clk 0:03:00]} 13...
Bb7 {[%clk 0:02:41.1]} 14. f4 {[%clk 0:02:59.1]} 14... c5 {[%clk 0:02:28.7]} 15.
Be4 {[%clk 0:03:00.2]} 15... Qc7 {[%clk 0:02:25.7]} 16. Bxb7 {[%clk 0:02:57.4]}
16... Qxb7 {[%clk 0:02:26.7]} 17. g4 {[%clk 0:02:50.2]} 17... Rad8 {[%clk
0:01:56]} 18. dxc5 {[%clk 0:02:50.9]} 18... Bxc5 {[%clk 0:01:57]} 19. Qg3 {[%clk
0:02:52]} 19... Qe4 {[%clk 0:01:24.1]} 20. Rde1 {[%clk 0:02:51.5]} 20... Qd5
{[%clk 0:01:22.9]} 21. Kb1 {[%clk 0:02:46.8]} 21... Qd2 {[%clk 0:01:23.8]} 22.
Nd3 {[%clk 0:02:30]} 22... Rd5 {[%clk 0:01:10.8]} 23. h4 {[%clk 0:02:04.1]}
23... Rc8 {[%clk 0:01:08.1]} 24. Rh2 {[%clk 0:01:57.5]} 24... Qa5 {[%clk
0:00:26.3]} 25. g5 {[%clk 0:01:58.4]} 25... h5 {[%clk 0:00:14.4]} 26. g6 {[%clk
0:01:59.4]} 26... Bd4 {[%clk 0:00:12.5]} 27. gxf7+ {[%clk 0:01:59.2]} 27... Kxf7
{[%clk 0:00:14.4]} 28. Rg2 {[%clk 0:01:52.9]} 28... Bf6 {[%clk 0:00:15.3]} 29.
Qg6+ {[%clk 0:01:52]} 29... Ke7 {[%clk 0:00:13.8]} 30. Rge2 {[%clk 0:01:44.5]}
30... Rc6 {[%clk 0:00:13.9]} 31. Ne5 {[%clk 0:01:14.7]} 31... Rcd6 {[%clk
0:00:15]} 32. Qf7+ {[%clk 0:01:12.4]} 32... Kd8 {[%clk 0:00:15.7]} 33. Nd3
{[%clk 0:01:02.2]} 33... Qb5 {[%clk 0:00:13.6]} 34. a4 {[%clk 0:00:49.2]} 34...
Qd7 {[%clk 0:00:11.8]} 35. Qg8+ {[%clk 0:00:41.3]} 35... Qe8 {[%clk 0:00:10.7]}
36. Qh7 {[%clk 0:00:37.8]} 36... Qf7 {[%clk 0:00:10]} 37. Qe4 {[%clk 0:00:24.4]}
37... Qd7 {[%clk 0:00:10.9]} 38. Qf3 {[%clk 0:00:19.3]} 38... a5 {[%clk
0:00:09.6]} 39. Re4 {[%clk 0:00:14.3]} 39... Rd4 {[%clk 0:00:06]} 40. Rxd4
{[%clk 0:00:15]} 40... Rxd4 {[%clk 0:00:07.3]} 41. Qxh5 {[%clk 0:00:11.9]} 41...
Rxa4 {[%clk 0:00:06]} 42. Qh8+ {[%clk 0:00:10.7]} 42... Kc7 {[%clk 0:00:06.7]}
43. Qa8 {[%clk 0:00:11.3]} 43... Rd4 {[%clk 0:00:07.7]} 44. Qa7+ {[%clk
0:00:12]} 44... Kd8 {[%clk 0:00:08.9]} 45. Qxb6+ {[%clk 0:00:12.9]} 45... Ke7
{[%clk 0:00:07.7]} 46. f5 {[%clk 0:00:12.7]} 46... Rd6 {[%clk 0:00:06]} 47.
Rxe6+ {[%clk 0:00:10.8]} 47... Rxe6 {[%clk 0:00:06.4]} 48. fxe6 {[%clk
0:00:11.2]} 48... Qxe6 {[%clk 0:00:08.3]} 49. Qxa5 {[%clk 0:00:11.8]} 49... Qh3
{[%clk 0:00:06.5]} 50. Qb4+ {[%clk 0:00:12.6]} 50... Kf7 {[%clk 0:00:07.2]} 51.
Qc4+ {[%clk 0:00:14]} 51... Kf8 {[%clk 0:00:08.1]} 52. Qc5+ {[%clk 0:00:14.5]}
52... Kf7 {[%clk 0:00:09.2]} 53. h5 {[%clk 0:00:15.9]} 53... Qh1+ {[%clk
0:00:09.1]} 54. Ka2 {[%clk 0:00:17.2]} 54... Qa8+ {[%clk 0:00:10.8]} 55. Kb3
{[%clk 0:00:18.4]} 55... Qb7+ {[%clk 0:00:11.1]} 56. Qb4 {[%clk 0:00:16.5]}
56... Qf3 {[%clk 0:00:10.2]} 57. Qc4+ {[%clk 0:00:17.4]} 57... Kf8 {[%clk
0:00:10.8]} 58. Qc5+ {[%clk 0:00:18.4]} 58... Kf7 {[%clk 0:00:11.1]} 59. Ka3
{[%clk 0:00:17.9]} 59... Be7 {[%clk 0:00:10.5]} 60. Ka2 {[%clk 0:00:05.7]} 60...
Qa8+ {[%clk 0:00:09.6]} 61. Qa3 {[%clk 0:00:04.3]} 61... Bxa3 {[%clk 0:00:10.7]}
62. bxa3 {[%clk 0:00:04.3]} 62... Qd5+ {[%clk 0:00:11.7]} 0-1

[Event "*** Titled Tuesday 3|2 Blitz"]
[Site "Chess.com"]
[Date "2015.06.02"]
[Round "7"]
[White "stepanosinovsky"]
[Black "Tirantes"]
[Result "0-1"]
[WhiteElo "2285"]
[BlackElo "2234"]
[TimeControl "180+2"]
[EndTime "12:31:55 PDT"]
[Termination "Tirantes won on time"]

1. Nf3 {[%clk 0:03:01.9]} 1... Nf6 {[%clk 0:02:59.6]} 2. g3 {[%clk 0:03:00.7]}
2... g6 {[%clk 0:02:56.3]} 3. Bg2 {[%clk 0:03:02.6]} 3... Bg7 {[%clk 0:02:57]}
4. O-O {[%clk 0:03:04.5]} 4... c5 {[%clk 0:02:53.5]} 5. d3 {[%clk 0:03:02.1]}
5... O-O {[%clk 0:02:52.9]} 6. e4 {[%clk 0:03:03.6]} 6... Nc6 {[%clk 0:02:51.2]}
7. Nc3 {[%clk 0:03:04.3]} 7... d6 {[%clk 0:02:50.7]} 8. Nh4 {[%clk 0:03:02.8]}
8... Rb8 {[%clk 0:02:44.2]} 9. a4 {[%clk 0:03:03.1]} 9... a6 {[%clk 0:02:38.2]}
10. f4 {[%clk 0:03:03.9]} 10... Bd7 {[%clk 0:02:27]} 11. f5 {[%clk 0:02:52.7]}
11... e6 {[%clk 0:02:14.1]} 12. Bf4 {[%clk 0:02:44.4]} 12... Ne5 {[%clk
0:02:04.5]} 13. a5 {[%clk 0:02:23]} 13... exf5 {[%clk 0:01:56.2]} 14. exf5
{[%clk 0:02:23.2]} 14... Bc6 {[%clk 0:01:56.4]} 15. Qd2 {[%clk 0:02:13.2]} 15...
Bxg2 {[%clk 0:01:55.6]} 16. Nxg2 {[%clk 0:02:07]} 16... Qd7 {[%clk 0:01:46.3]}
17. Ne3 {[%clk 0:01:45.5]} 17... Nh5 {[%clk 0:01:32.6]} 18. Ncd5 {[%clk
0:01:15.7]} 18... Nxf4 {[%clk 0:01:19.8]} 19. Rxf4 {[%clk 0:01:04.8]} 19... f6
{[%clk 0:00:56.3]} 20. Qg2 {[%clk 0:00:25.7]} 20... Bh6 {[%clk 0:00:51.5]} 21.
Rf2 {[%clk 0:00:20.5]} 21... Rbe8 {[%clk 0:00:47.4]} 22. Raf1 {[%clk 0:00:17.2]}
22... Bxe3 {[%clk 0:00:44.2]} 23. Nxe3 {[%clk 0:00:17.9]} 23... g5 {[%clk
0:00:44.7]} 24. Nd5 {[%clk 0:00:18.2]} 24... h5 {[%clk 0:00:42.4]} 25. b3 {[%clk
0:00:18.7]} 25... g4 {[%clk 0:00:39.4]} 26. Re2 {[%clk 0:00:17.1]} 26... Qc6
{[%clk 0:00:34.1]} 27. c4 {[%clk 0:00:12.6]} 27... Kg7 {[%clk 0:00:27.8]} 28.
Re3 {[%clk 0:00:12.2]} 28... Nf3+ {[%clk 0:00:24.3]} 29. Rexf3 {[%clk
0:00:10.2]} 29... gxf3 {[%clk 0:00:24.2]} 30. Qxf3 {[%clk 0:00:11.8]} 30... Rh8
{[%clk 0:00:22.3]} 31. g4 {[%clk 0:00:12.6]} 31... Kf7 {[%clk 0:00:19.3]} 32. g5
{[%clk 0:00:13.4]} 32... fxg5 {[%clk 0:00:17.5]} 33. f6 {[%clk 0:00:14.8]} 33...
Re5 {[%clk 0:00:16.4]} 34. Qh3 {[%clk 0:00:13]} 34... Qc8 {[%clk 0:00:15.2]} 35.
Qf3 {[%clk 0:00:11.3]} 35... Qg4+ {[%clk 0:00:13.8]} 36. Qxg4 {[%clk 0:00:12.6]}
36... hxg4 {[%clk 0:00:14.9]} 37. Rf2 {[%clk 0:00:13.5]} 37... Rh3 {[%clk
0:00:12]} 38. Rd2 {[%clk 0:00:11.7]} 38... Rf3 {[%clk 0:00:11.4]} 39. Kg2 {[%clk
0:00:11.6]} 39... Rxd5 {[%clk 0:00:12.1]} 40. cxd5 {[%clk 0:00:12.5]} 40... Kxf6
{[%clk 0:00:13.1]} 41. d4 {[%clk 0:00:13.1]} 41... cxd4 {[%clk 0:00:11.2]} 42.
Rxd4 {[%clk 0:00:13.6]} 42... Rxb3 {[%clk 0:00:11.9]} 43. Rxg4 {[%clk
0:00:12.4]} 43... Kf5 {[%clk 0:00:13]} 44. Rc4 {[%clk 0:00:13]} 44... Rb5 {[%clk
0:00:13.2]} 45. Rc7 {[%clk 0:00:14.1]} 45... Rxa5 {[%clk 0:00:12]} 46. Rxb7
{[%clk 0:00:14.7]} 46... Rxd5 {[%clk 0:00:13]} 47. Rb6 {[%clk 0:00:16.1]} 47...
a5 {[%clk 0:00:14]} 48. Ra6 {[%clk 0:00:17.6]} 48... Kf4 {[%clk 0:00:14.5]} 49.
Ra8 {[%clk 0:00:17]} 49... Rd2+ {[%clk 0:00:14]} 50. Kg1 {[%clk 0:00:18.1]}
50... Ra2 {[%clk 0:00:14.7]} 51. Rd8 {[%clk 0:00:16.9]} 51... Ke5 {[%clk
0:00:14.3]} 52. Rg8 {[%clk 0:00:16.7]} 52... Kf4 {[%clk 0:00:12.7]} 53. Rd8
{[%clk 0:00:17.6]} 53... Rd2 {[%clk 0:00:13.7]} 54. Ra8 {[%clk 0:00:17.8]} 54...
Rd5 {[%clk 0:00:14.8]} 55. Kf2 {[%clk 0:00:18.5]} 55... g4 {[%clk 0:00:15.5]}
56. Rf8+ {[%clk 0:00:18.7]} 56... Ke4 {[%clk 0:00:15.7]} 57. Re8+ {[%clk
0:00:19.4]} 57... Re5 {[%clk 0:00:15.6]} 58. Ra8 {[%clk 0:00:18.9]} 58... Kd3
{[%clk 0:00:15.7]} 59. Kg3 {[%clk 0:00:19.8]} 59... Rg5 {[%clk 0:00:10.9]} 60.
Kf4 {[%clk 0:00:20.5]} 60... Rh5 {[%clk 0:00:11.2]} 61. Kxg4 {[%clk 0:00:19.3]}
61... Rxh2 {[%clk 0:00:11.6]} 62. Rxa5 {[%clk 0:00:20.4]} 62... Kc4 {[%clk
0:00:09.9]} 63. Kf3 {[%clk 0:00:21.5]} 63... d5 {[%clk 0:00:09]} 64. Ra8 {[%clk
0:00:22.7]} 64... d4 {[%clk 0:00:09.4]} 65. Rd8 {[%clk 0:00:17.9]} 65... Kc3
{[%clk 0:00:08.9]} 66. Ke4 {[%clk 0:00:18.2]} 66... Re2+ {[%clk 0:00:08.5]} 67.
Kf3 {[%clk 0:00:17.2]} 67... Re1 {[%clk 0:00:09.4]} 68. Kf2 {[%clk 0:00:18]}
68... Re7 {[%clk 0:00:10.2]} 69. Rc8+ {[%clk 0:00:17.3]} 69... Kd2 {[%clk
0:00:10.9]} 70. Rc6 {[%clk 0:00:16]} 70... d3 {[%clk 0:00:11.9]} 71. Rf6 {[%clk
0:00:16.2]} 71... Kc1 {[%clk 0:00:12]} 72. Rc6+ {[%clk 0:00:17.1]} 72... Kd1
{[%clk 0:00:13.2]} 73. Rd6 {[%clk 0:00:16.3]} 73... d2 {[%clk 0:00:14.1]} 74.
Rf6 {[%clk 0:00:17.3]} 74... Re5 {[%clk 0:00:14.5]} 75. Rc6 {[%clk 0:00:13.2]}
75... Rf5+ {[%clk 0:00:13.8]} 76. Ke3 {[%clk 0:00:14.3]} 76... Ke1 {[%clk
0:00:14.9]} 77. Ke4 {[%clk 0:00:14.6]} 77... Rf8 {[%clk 0:00:15.2]} 0-1